Cogmind - Beta 13 @@@ ROGUE MODE // 2024.04.03 @ 02:15:53 Player: Reimu Result: Destroyed by G-34 Mercenary with Small Laser Performance ------------- Evolutions (1) 500 Regions Visited (2) 400 Robots Destroyed (48) 240 Value Destroyed (1280) 1280 Prototype IDs (0) 0 Alien Tech Used (0) 0 Bonus (151) 151 TOTAL SCORE: 2571 Bonus ------- High Alert Combat Kills 151 Cogmind --------- Core Integrity 0/400 Matter 300/300 Energy 79/100 System Corruption 12% Temperature Cool (6) Movement Core (50) Location -9/Materials Parts ------- > --- POWER (1) -------- (None) > --- PROPULSION (2) --- (None) > --- UTILITY (4) ------ (None) > --- WEAPON (2) ------- (None) > --- INVENTORY (5) ---- Compact Wheel Peak State ------------ > --- POWER ------------ Ion Engine > --- PROPULSION ------- Wheel Compact Wheel > --- UTILITY ---------- Signal Interpreter Targeting Computer Core Shielding Backup Plating I > --- WEAPON ----------- Assault Cannon Assault Cannon > --- INVENTORY -------- Wheel Structural Scanner Light Assault Rifle Light Cannon Mining Laser [Rating: 13] Favorites ----------- Power Ion Engine Engine Ion Engine Power Core Light Nuclear Core Propulsion Light Treads Treads Light Treads Wheel Wheel Utility Core Shielding Device Structural Scanner Processor Signal Interpreter Protection Core Shielding Weapon Heavy Assault Rifle Energy Gun Beam Rifle Energy Cannon Light EM Pulse Cannon Ballistic Gun Heavy Assault Rifle Ballistic Cannon Assault Cannon Launcher Grenade Launcher Special Melee Weapon Datajack Build | -11 -10 -9 ------- Run | Yrd Mat Mat Slots Evolved 2 | . . 2 Power . | . . . Propulsion . | . . . Utility 2 | . . 2 Weapon . | . . . Parts Attached 40 | 6 13 21 Power 5 | 2 2 1 Engine 4 | 2 1 1 Core 1 | . 1 . Reactor . | . . . Propulsion 8 | 2 2 4 Treads 4 | . . 4 Leg . | . . . Wheel 4 | 2 2 . Hover . | . . . Flight . | . . . Utility 11 | . 5 6 Device 4 | . 1 3 Storage . | . . . Processor 2 | . 1 1 Hackware . | . . . Protection 5 | . 3 2 Artifact . | . . . Weapon 16 | 2 4 10 Energy Gun 3 | 1 . 2 Energy Cannon 2 | . . 2 Ballistic Gun 4 | 1 1 2 Ballistic Cannon 5 | . 2 3 Launcher 1 | . 1 . Special Weapon . | . . . Impact Weapon . | . . . Slashing Weapon . | . . . Piercing Weapon . | . . . Special Melee Weapon 1 | . . 1 Unidentified Prototypes . | . . . Parts Lost 19 | . 2 17 Power 3 | . 1 2 Propulsion 4 | . . 4 Utility 7 | . . 7 Weapon 5 | . 1 4 Highest Loss Streak 13 | . 1 13 To Critical Strikes . | . . . Average Slot Usage (%) 91 | . 89 92 Engine 8 | . 6 8 Core 1 | . 3 . Treads 11 | . . 16 Wheel 10 | . 26 3 Device 9 | . 10 9 Processor 13 | . 2 19 Protection 13 | . 13 13 Energy Gun 1 | . . 2 Energy Cannon 3 | . . 5 Ballistic Gun 9 | . 13 8 Ballistic Cannon 4 | . 5 4 Launcher 1 | . 5 . Naked Turns 3 | . . 3 Heaviest Build 21 | 8 12 21 Greatest Support 40 | 20 26 40 Greatest Overweight (x) 3 | . . 3 Average Overweight (x) . | . . . Largest Inventory Capacity 5 | 5 5 5 Average Capacity 5 | 5 5 5 Most Carried 5 | 5 5 5 Average Carried 4 | 2 3 4 Final Capacity 5 | 5 5 5 Final Carried 5 | 4 5 1 Class Distribution -------------------- 58% | Mutant 41% | Scavenger-Mutant Dominant Class ---------------- Mutant | -10/Materials Scavenger-Mutant | -9/Materials Resources | -11 -10 -9 ----------- Run | Yrd Mat Mat Matter Collected 1011 | 256 218 537 Remotely . | . . . Salvage Created 1305 | 60 244 1001 Parts 104 | 6 24 74 Haulers Intercepted . | . . . Recyclers Shooed 1 | . 1 . Parts Field Recycled . | . . . Retrieved Matter . | . . . Parts Self-Destructed . | . . . Prevented . | . . . Kills | -11 -10 -9 ------- Run | Yrd Mat Mat Combat Hostiles Destroyed 40 | 1 9 30 Guns 14 | 1 4 9 Cannons 20 | . 1 19 AOE 5 | . 4 1 Classes Destroyed 7 | 2 2 3 Worker 3 | 1 1 1 Builder 4 | . 2 2 Watcher 1 | . . 1 Swarmer 10 | . 3 7 Grunt 24 | 1 6 17 Duelist 1 | . . 1 Sentry 5 | . . 5 Best Kill Streak 8 | 1 7 8 Combat Bots Only 7 | 1 5 7 Max Kills in Single Turn 3 | 1 3 2 Gunslinging . | . . . Exploded 2 | . 2 1 Melee . | . . . Uniques/NPCs Destroyed . | . . . Combat | -11 -10 -9 -------- Run | Yrd Mat Mat Hostile Shots Fired 244 | 4 40 200 Missed 81 | 2 15 64 Damage Taken 2075 | 22 280 1773 Core 443 | 12 28 403 Absorbed by Shields . | . . . Redirected to Shielding 52 | . 6 46 Regen/Repaired (Parts) 10 | . 10 . Core Remaining (%) 89 | 95 84 . Volleys Fired 113 | 6 28 79 Largest 2 | 2 2 2 Hottest 88 | 60 55 88 Shots Fired 191 | 12 41 138 Gun 97 | 12 28 57 Cannon 88 | . 7 81 Launcher 6 | . 6 . Special . | . . . Kinetic 136 | 6 35 95 Thermal 14 | . . 14 Explosive 6 | . 6 . Electromagnetic 35 | 6 . 29 Robot Hit Streak 19 | 4 5 19 Robot Miss Streak 4 | 2 4 3 Penetration Max . | . . . Secondary Targets . | . . . Shots Hit Robots 119 | 9 24 86 Core Hits 65 | 4 22 39 Critical Kills . | . . . Critical Parts Destroyed . | . . . Critical Strikes 7 | . . 7 Burn 3 | . . 3 Blast 3 | . . 3 Corrupt 1 | . . 1 Melee Attacks 3 | . . 3 Impact . | . . . Slashing . | . . . Piercing . | . . . Sneak Attacks . | . . . Combat Hostiles . | . . . Follow-up Attacks . | . . . Damage Inflicted 2505 | 87 589 1829 Guns 704 | 87 139 478 Cannons 1304 | . 53 1251 Explosions 497 | . 397 100 Melee . | . . . Ramming . | . . . Kinetic 1309 | 37 192 1080 Thermal 304 | . . 304 Explosive 397 | . 397 . Electromagnetic 495 | 50 . 445 Impact . | . . . Slashing . | . . . Piercing . | . . . Highest Corruption 12 | . . 12 Average Corruption 1 | . . 1 Corruption Purged . | . . . Corruption Blocked . | . . . Effects 2 | . . 2 Message Errors 1 | . . 1 Parts Rejected 1 | . . 1 Overload Shots . | . . . Overflow Damage 5 | . 5 . Projectiles . | . . . Explosions 5 | . 5 . Melee . | . . . Knockbacks 1 | . . 1 Impact . | . . . Kinetic 1 | . . 1 Secondary . | . . . Self-Inflicted Damage 8 | . 8 . Shots 1 | . 1 . Rammed . | . . . Targets Rammed . | . . . Kicked . | . . . Crushed . | . . . Highest Temperature 164 | 40 72 164 Average Temperature 44 | 22 26 48 Received Heat Transfer 771 | 12 129 630 Siege Activations . | . . . Robots Corrupted . | . . . Combat Hostiles . | . . . Parts Fried 1 | . . 1 Impact Corruptions . | . . . Robots Melted 1 | . . 1 Combat Hostiles 1 | . . 1 Parts Melted 5 | . . 5 Heat Transferred 890 | . . 890 Parts Sabotaged . | . . . Parts Stolen . | . . . Parts Stripped . | . . . Power Chain Reactions 2 | . . 2 Alert | -11 -10 -9 ------- Run | Yrd Mat Mat Peak Influence 774 | 25 328 774 Initial 138 | . 16 138 Average 386 | 6 195 515 Maximum Alert Level 3 | . 1 3 Low Security (%) 20 | 100 33 5 Level 1 29 | . 66 15 Level 2 42 | . . 66 Level 3 8 | . . 12 Level 4 . | . . . Level 5 . | . . . High Security . | . . . Max Security . | . . . Squads Dispatched 9 | . 2 7 Investigation 6 | . 1 5 Extermination . | . . . Reinforcement 2 | . 1 1 Assault 1 | . . 1 Garrison . | . . . Intercept . | . . . Searches Triggered . | . . . Construction Impeded . | . . . Haulers Reinforced . | . . . Active Scanning Responses . | . . . Cargo Convoy Interrupts . | . . . Stealth | -11 -10 -9 --------- Run | Yrd Mat Mat Distress Signals 5 | . 1 4 Communications Jammed . | . . . Distress Signals . | . . . Times Spotted 64 | 1 17 46 Peak Tracking Total 7 | 1 4 7 Tactical Retreats 3 | . . 3 Traps | -11 -10 -9 ------- Run | Yrd Mat Mat Traps Triggered 2 | . 1 1 Indirectly . | . . . Trap Hack Attempts . | . . . Triggered . | . . . Disarmed . | . . . Reprogrammed . | . . . Reused . | . . . Traps Extracted . | . . . Installed . | . . . Triggered . | . . . Machines | -11 -10 -9 ---------- Run | Yrd Mat Mat Machines Disabled 4 | . 1 3 Max in Single Turn 1 | . 1 1 Machines Repaired . | . . . Machines Dismantled . | . . . Machines Sabotaged . | . . . Overloaded Fab Kills . | . . . Hacking | -11 -10 -9 --------- Run | Yrd Mat Mat Machines Accessed 7 | . 2 5 Terminals 5 | . 1 4 Fabricators . | . . . Repair Stations 1 | . 1 . Recycling Units . | . . . Scanalyzers 1 | . . 1 Garrison Access . | . . . Total Hacks 28 | . 8 20 Successful 17 | . 6 11 Failed 10 | . 2 8 Catastrophic . | . . . Database Lockouts 1 | . . 1 Manual . | . . . Terminals 18 | . 3 15 Fabricators . | . . . Repair Stations 5 | . 5 . Recycling Units . | . . . Scanalyzers 5 | . . 5 Garrison Access . | . . . Terminal Hacks 8 | . 1 7 Record 4 | . . 4 Emergency Access Points 2 | . . 2 Alert Level 1 | . 1 . Locate Traps 1 | . . 1 Fabricator Hacks . | . . . Repair Station Hacks 5 | . 5 . Scan Component 2 | . 2 . Repair 2 | . 2 . Refit 1 | . 1 . Recycling Unit Hacks . | . . . Scanalyzer 4 | . . 4 Insert Component 2 | . . 2 Analyze 2 | . . 2 Garrison Access Hacks . | . . . Unauthorized Hacks . | . . . Terminals . | . . . Fabricators . | . . . Repair Stations . | . . . Recycling Units . | . . . Scanalyzers . | . . . Garrison Access . | . . . Data Cores Recovered . | . . . Used . | . . . Hacking Detections 7 | . 2 5 Full Trace Events 6 | . 1 5 Feedback Events 1 | . . 1 Corruption 1 | . . 1 Feedback Blocked . | . . . Robot Schematics Acquired . | . . . Robots Built . | . . . Authchips . | . . . Time . | . . . Total Robot Build Rating . | . . . Part Schematics Acquired 2 | . . 2 Parts Built . | . . . Authchips . | . . . Time . | . . . Total Part Build Rating . | . . . Parts Repaired 2 | . 2 . Time 52 | . 52 . Parts Recycled . | . . . Recycled Matter . | . . . Retrieved Matter . | . . . Retrieved Components . | . . . Parts Scanalyzed 2 | . . 2 Part Schematics Acquired 2 | . . 2 Parts Damaged . | . . . Bothacking | -11 -10 -9 ------------ Run | Yrd Mat Mat Used RIF Installer . | . . . Robots Hacked 1 | . . 1 Non-combat . | . . . Combat 1 | . . 1 Robot Hacks Applied 2 | . . 2 parse_system 2 | . . 2 Relay Couplers Released . | . . . Fabnet Peak Effective % . | . . . Robots Rewired . | . . . Allies Hacked . | . . . Hacks Repelled . | . . . Allies | -11 -10 -9 -------- Run | Yrd Mat Mat Total Allies . | . . . Largest Group . | . . . Highest-Rated Group . | . . . Highest-Rated Ally . | . . . Total Orders . | . . . Ally Attacks . | . . . Total Damage . | . . . Kills . | . . . Allies Corrupted . | . . . Allies Melted . | . . . Intel | -11 -10 -9 ------- Run | Yrd Mat Mat Robot Analysis Total . | . . . Derelict Logs Recovered . | . . . Drone Launches . | . . . Drone Recoveries . | . . . Exploration | -11 -10 -9 ------------- Run | Yrd Mat Mat Turns Passed 1336 | 94 390 852 Spaces Moved 814 | 86 339 389 Core 33 | 21 . 12 Treads 312 | . . 312 Legs . | . . . Wheels 469 | 65 339 65 Hover . | . . . Flight . | . . . Fastest Speed 50 | 50 80 90 Average Speed 114 | 72 86 147 Slowest Speed 200 | 80 90 200 Overloaded Moves . | . . . Propulsion Burnouts . | . . . Robots Hopped . | . . . Cave-ins Triggered . | . . . Exploration Rate (%) 31 | 6 52 35 Regions Visited 2 Branch Regions . Pre-discovered Areas . | . . . Known Exits Taken . | . . . Unknown Exits Taken 2 | 1 1 . Scrap Searched . | . . . Spaces Dug . | . . . Terrain Destroyed 54 | . 41 13 Melee . | . . . Projectile 6 | . . 6 AOE 48 | . 41 7 Terrain Rammed . | . . . Walls Destroyed . | . . . Machines Disabled . | . . . Actions | -11 -10 -9 --------- Run | Yrd Mat Mat Total 1033 | 106 400 527 Wait 21 | . 1 20 Move 812 | 85 338 389 Hop . | . . . Pick Up 31 | 9 13 9 Fast Attach 4 | . . 4 Attach 22 | 5 8 9 Detach . | . . . Swap 14 | 1 5 8 Drop 13 | . 7 6 Fire 113 | 6 28 79 Melee 3 | . . 3 Ram . | . . . Kick . | . . . Crush . | . . . Escape Stasis . | . . . Rewire . | . . . Trap . | . . . Miscellaneous . | . . . Route ------- -11/Scrapyard -10/Materials -9/Materials (discovered 2 exits: *Sto x2) History --------- Turn | Location | Event 2 | -11/Scrapyard | Met Revision 17 68 | -11/Scrapyard | Discovered new exit (range 8) 95 | -11/Scrapyard | Entered Materials 138 | -10/Materials | Repaired Ion Engine 164 | -10/Materials | Repaired Wheel? 314 | -10/Materials | Build established: Mutant 357 | -10/Materials | Discovered new exit (range 12) 485 | -10/Materials | Entered another Materials area 485 | -9/Materials | Evolved 2 slots: Utility x2 539 | -9/Materials | Discovered new exit (range 16) 605 | -9/Materials | Lost 3 parts (1p1n1u) 650 | -9/Materials | Destroyed 7 combat bots 668 | -9/Materials | Identified exit to Storage 941 | -9/Materials | Build established: Scavenger-Mutant 1052 | -9/Materials | Central database locked down 1165 | -9/Materials | Discovered exit to Storage (range 14) 1285 | -9/Materials | First assault squad dispatched 1296 | -9/Materials | Core integrity fell below 50% 1318 | -9/Materials | Core integrity fell below 20% 1335 | -9/Materials | System corruption reached 10% 1337 | -9/Materials | Destroyed by G-34 Mercenary with Small Laser Last Messages --------------- Y-45 Defender destroyed. Acquired 31 matter. C-30 ARC bursts open, deploying its payload. G-47 Trooper unfolds itself. G-34 Mercenary unfolds itself. B-36 Bruiser unfolds itself. G-34 Mercenary destroyed. Acquired Lgt. Treads. Acquired 10 matter. Beam Rifle destroyed. Signal Interpreter destroyed. System corrupted by crushing effect (+1). System corrupted by crushing effect (+2). Heat Sink destroyed. System corrupted by crushing effect (+4). Lgt. Treads destroyed. Structural Scanner destroyed. System corrupted by crushing effect (+2). [Achievement: System Compromised] [Achievement: First Step to Greatness] Map ----- +----------------------------------------------------+ | ##### ######+#### # ????????? | | ???? ##?## # ????????? | | ?? ##?## ^ / **????? | | ??###########?## T """ """ ^ # **????? | | ??## #?## [%=""" """ # ????????? | | ??????????????## """ """ ##????????? | | ??????????????## ##????????? | | ??????????????## ##????????? | | ??????????????## """ """ ## ???????? | | ??????????????## """ """ != ## ???????? | | ??????????????## """ """ != # ???????? | | ??????????????## ! # ???????? | | ??????????????## ^ = # ???????? | | ??????????????## + ???????? | | ?????????????? ? # ???????? | | ???????????????? ?? # ???????? | | ??????????????????? # ???? | | ???????????????????############# #######???? | | ???????????????????###### # # ???? | | ???????????????????????## # # ??????? | | ???????????????????????##!! r% + ????????? | | ???????????????? # ???? #!! # # ????????? | | ???????????????? # ???? #* [# # ????????? | | ???????????????? # ??? #g""" # # ????????? | | ???????????????? + ! !? #b""" # * # ????????? | | ???????????????? # #@""" # * # ????????? | | ???????????????? # +!g =# # ????????? | | ???????????????? ######## """ %# ##????????? | | ???????????????? # # """! # ##????????? | | ??????????????????????? # """%[# ##????????? | | ??????????????????????? # g [=# # ????????? | | ??????????????????????? ### #### # ????????? | | ??????????????????????? ######## # ????????? | | ?????????????????????????####### # ????????? | | ??????????????????????????????## + ????????? | | ??????????????????????????????## # ????????? | | ??????????????????????????????## # ????????? | | ?????????????????????????????? # ????????? | | ???????????????????????????????###+####????????? | | ??????????????????????????????? ????????? | | ???????????????????????????????????????????????? | | ???????????????????????????????????????????????? | | ???????????????????????????????????????????????? | | ???????????????????????????????????????????????? | | ???????????????????????????????????????????????? | | ???????????????????????????????????????????????? | | ???????????????????????????????????????????????? | | ???????????????????????????????????????????????? | | ???????????????????????????????????????????????? | | ???????????????????????????????????????????????? | +----------------------------------------------------+ Best States ------------- Heat Dissipation 38 Energy Generation 14 Energy Capacity 250 Matter Stores 300 Matter Capacity 300 Sight Range 16 Terrain Scan Density 10 Armor Coverage 225 Core Shielding 20 Evasion (%) 50 Targeting Accuracy 5 Recoil Reduction 2 Item Schematics ----------------- Beam Rifle | -9/Materials | Scanalyzed Wheel | -9/Materials | Scanalyzed Robot Schematics ------------------ None Fabricated ------------ Nothing Alien Tech Used ----------------- None Achievements -------------- Crack Shot First Step to Greatness It's Just You One Hack Too Far Part-time Mechanic Significant Disruption System Compromised Uninvited Guest Challenges ------------ None Game ------ Seed ProtonGravitonNukerbomber Manual? 0 Play Time 00:39:27 Cumulative 0.6 hours Start 2024.04.03 @ 01:34:59 End 2024.04.03 @ 02:15:53 Sessions 1 Manual Loads 0 Difficulty Rogue Special Mode None Game No. 1 Rogue 1 Adventurer 0 Explorer 0 Win Type - Total 0 Types 0/0/0/0/0/0/0/0/0 Lore% 0 Gallery% 2 Achievement% 3 Wizard Run 0 Options --------- Layout 1 ASCII 0 Keyboard 0 Movement Mouse Keybinds 0 Fullscreen 1 Font 32/SmallcapsGlow Map View 50x35 Zoom Use 0% Tactical HUD 0 Map Filters NONE Filters NONE Steam 1 RUN: e8a19773-db91-4c6d-9e64-60a1e2f8c4db